Cogmind - Beta 13 @@@ ROGUE MODE // 2024.03.15 @ 15:29:27 Player: NitroKuite Result: Destroyed by G-47 Trooper with Particle Gun Performance ------------- Evolutions (2) 1000 Regions Visited (3) 600 Robots Destroyed (41) 205 Value Destroyed (1134) 1134 Prototype IDs (5) 100 Alien Tech Used (0) 0 Bonus (0) 0 TOTAL SCORE: 3039 Bonus ------- None Cogmind --------- Core Integrity 0/550 Matter 143/300 Energy 99/100 System Corruption 2% Temperature Cool (18) Movement Core (350) Ox6 Location -8/Materials Parts ------- > --- POWER (2) -------- (None) > --- PROPULSION (3) --- (None) > --- UTILITY (4) ------ Large Storage Unit > --- WEAPON (2) ------- (None) > --- INVENTORY (15) --- Nuclear Core Nuclear Core Large Storage Unit Medium Armor Plating Medium Laser Backup Laser I Particle Gun Heavy Particle Gun High-powered Shotgun High-powered Shotgun Peak State ------------ > --- POWER ------------ Nuclear Core Nuclear Core > --- PROPULSION ------- Wheel Wheel Compact Wheel > --- UTILITY ---------- Improved Heat Sink Large Storage Unit Improved Sensor Array Weapon Shielding > --- WEAPON ----------- Improved Assault Rifle Minigun > --- INVENTORY -------- Nuclear Core Nuclear Core Light Nuclear Core Large Storage Unit Weapon Shielding Medium Armor Plating Medium Armor Plating Medium Laser Particle Gun Heavy Particle Gun High-powered Shotgun High-powered Shotgun [Rating: 25] Favorites ----------- Power Ion Engine Engine Ion Engine Power Core Nuclear Core Propulsion Compact Wheel Treads Light Treads Wheel Compact Wheel Hover Unit Backup Propulsion I Utility Large Storage Unit Device Improved Terrain Scanner Storage Large Storage Unit Processor Signal Interpreter Protection Weapon Shielding Weapon Assault Rifle Energy Gun Medium Laser Energy Cannon Advanced Beam Cannon Ballistic Gun Assault Rifle Special Melee Weapon Improved Datajack Build | -11 -10 -9 -8 ------- Run | Yrd Mat Mat Mat Slots Evolved 4 | . . 2 2 Power 1 | . . . 1 Propulsion 1 | . . 1 . Utility 2 | . . 1 1 Weapon . | . . . . Parts Attached 49 | 9 1 19 20 Power 7 | 1 . 2 4 Engine 4 | 1 . 2 1 Core 3 | . . . 3 Reactor . | . . . . Propulsion 13 | 4 . 6 3 Treads 2 | 2 . . . Leg . | . . . . Wheel 11 | 2 . 6 3 Hover . | . . . . Flight . | . . . . Utility 13 | 2 . 4 7 Device 6 | 1 . 2 3 Storage 3 | 1 . 1 1 Processor 1 | . . 1 . Hackware . | . . . . Protection 3 | . . . 3 Artifact . | . . . . Weapon 16 | 2 1 7 6 Energy Gun 5 | 1 . 3 1 Energy Cannon 1 | . . 1 . Ballistic Gun 9 | 1 1 3 4 Ballistic Cannon . | . . . . Launcher . | . . . . Special Weapon . | . . . . Impact Weapon . | . . . . Slashing Weapon . | . . . . Piercing Weapon . | . . . . Special Melee Weapon 1 | . . . 1 Unidentified Prototypes 2 | . . . 2 Parts Lost 25 | . . 7 18 Power 5 | . . 1 4 Propulsion 10 | . . 4 6 Utility 7 | . . 1 6 Weapon 3 | . . 1 2 Highest Loss Streak 9 | . . 3 9 To Critical Strikes . | . . . . Average Slot Usage (%) 91 | . 100 92 85 Engine 9 | . 14 11 4 Core 3 | . . . 11 Wheel 26 | . 28 32 17 Device 8 | . 14 6 9 Storage 10 | . 14 11 9 Processor 6 | . . 10 4 Protection 3 | . . . 11 Energy Gun 4 | . 3 6 1 Energy Cannon 2 | . . 5 . Ballistic Gun 14 | . 24 9 14 Naked Turns . | . . . . Heaviest Build 49 | 15 15 33 49 Greatest Support 48 | 40 32 48 42 Greatest Overweight (x) 10 | 3 . 1 10 Average Overweight (x) . | . . . 1 Largest Inventory Capacity 15 | 8 8 15 15 Average Capacity 13 | 7 8 14 15 Most Carried 15 | 7 8 14 15 Average Carried 9 | 4 7 9 11 Final Capacity 15 | 8 8 15 15 Final Carried 14 | 7 8 14 10 Class Distribution -------------------- 75% | Mutant 24% | Scavenger-Mutant Dominant Class ---------------- Mutant | -10/Materials Mutant | -9/Materials Mutant | -8/Materials Resources | -11 -10 -9 -8 ----------- Run | Yrd Mat Mat Mat Matter Collected 1063 | 315 56 319 373 Remotely . | . . . . Salvage Created 1313 | 120 88 544 561 Parts 101 | 11 6 49 35 Haulers Intercepted 1 | . . . 1 Recyclers Shooed . | . . . . Parts Field Recycled . | . . . . Retrieved Matter . | . . . . Parts Self-Destructed . | . . . . Prevented . | . . . . Kills | -11 -10 -9 -8 ------- Run | Yrd Mat Mat Mat Combat Hostiles Destroyed 32 | . 4 16 12 Guns 22 | . 4 8 10 Cannons 8 | . . 8 . AOE 2 | . . . 2 Classes Destroyed 9 | 2 2 3 2 Builder 2 | . . 1 1 Tunneler 3 | 3 . . . Hauler 1 | . . . 1 Recycler 1 | 1 . . . Watcher 2 | . . 2 . Swarmer 11 | . 3 8 . Grunt 15 | . 1 5 9 Sentry 5 | . . 3 2 Hunter 1 | . . . 1 Best Kill Streak 7 | 2 4 6 7 Combat Bots Only 5 | . 4 5 2 Max Kills in Single Turn 2 | 1 1 1 2 Gunslinging . | . . . . Exploded 2 | . . . 2 Melee . | . . . . Uniques/NPCs Destroyed . | . . . . Combat | -11 -10 -9 -8 -------- Run | Yrd Mat Mat Mat Hostile Shots Fired 277 | . 28 96 153 Missed 69 | . 4 26 39 Damage Taken 2726 | . 195 785 1746 Core 802 | . 44 196 562 Absorbed by Shields . | . . . . Redirected to Shielding 102 | . . . 102 Core Remaining (%) 77 | 100 82 51 . Volleys Fired 135 | 15 14 43 63 Largest 2 | 2 2 2 2 Hottest 133 | 70 40 133 91 Shots Fired 234 | 20 28 77 109 Gun 209 | 20 28 53 108 Cannon 25 | . . 24 1 Launcher . | . . . . Special . | . . . . Kinetic 174 | 15 28 27 104 Thermal 60 | 5 . 50 5 Explosive . | . . . . Electromagnetic . | . . . . Robot Hit Streak 8 | 8 5 8 6 Robot Miss Streak 6 | 2 4 6 6 Penetration Max . | . . . . Secondary Targets 3 | . 1 1 1 Max Gunslinging Chain 1 | . 1 1 1 Shots Hit Robots 142 | 15 13 43 71 Core Hits 69 | 5 5 25 34 Critical Kills 1 | . . 1 . Critical Parts Destroyed . | . . . . Critical Strikes 1 | . . 1 . Destroy 1 | . . 1 . Melee Attacks . | . . . . Impact . | . . . . Slashing . | . . . . Piercing . | . . . . Sneak Attacks . | . . . . Combat Hostiles . | . . . . Follow-up Attacks . | . . . . Damage Inflicted 2417 | 184 166 691 1376 Guns 1925 | 184 166 382 1193 Cannons 309 | . . 309 . Explosions 183 | . . . 183 Melee . | . . . . Ramming . | . . . . Kinetic 1727 | 159 166 209 1193 Thermal 690 | 25 . 482 183 Explosive . | . . . . Electromagnetic . | . . . . Impact . | . . . . Slashing . | . . . . Piercing . | . . . . Highest Corruption 2 | . 1 . 2 Average Corruption 1 | . 1 . 2 Corruption Purged . | . . . . Corruption Blocked . | . . . . Effects 7 | . . . 7 Message Errors 1 | . . . 1 Matter Fused 3 | . . . 3 Energy Discharges 1 | . . . 1 Parts Rejected 2 | . . . 2 Overload Shots . | . . . . Overflow Damage 4 | . . 1 3 Projectiles 1 | . . 1 . Explosions 3 | . . . 3 Melee . | . . . . Knockbacks . | . . . . Impact . | . . . . Kinetic . | . . . . Secondary . | . . . . Self-Inflicted Damage 38 | . . . 38 Shots 1 | . . . 1 Rammed . | . . . . Targets Rammed . | . . . . Kicked . | . . . . Crushed . | . . . . Highest Temperature 355 | 27 . 355 55 Average Temperature 61 | 11 . 94 18 Received Heat Transfer 975 | . 18 246 711 Siege Activations . | . . . . Robots Corrupted . | . . . . Combat Hostiles . | . . . . Parts Fried . | . . . . Impact Corruptions . | . . . . Robots Melted . | . . . . Combat Hostiles . | . . . . Parts Melted 1 | . . 1 . Heat Transferred 1173 | 74 . 999 100 Parts Sabotaged . | . . . . Parts Stolen . | . . . . Parts Stripped . | . . . . Power Chain Reactions . | . . . . Alert | -11 -10 -9 -8 ------- Run | Yrd Mat Mat Mat Peak Influence 386 | 20 176 305 386 Initial 122 | . 13 74 122 Average 129 | 10 100 148 161 Maximum Alert Level 1 | . . 1 1 Low Security (%) 80 | 100 100 68 79 Level 1 19 | . . 31 20 Level 2 . | . . . . Level 3 . | . . . . Level 4 . | . . . . Level 5 . | . . . . High Security . | . . . . Max Security . | . . . . Squads Dispatched 7 | . 1 2 4 Investigation 2 | . . 1 1 Extermination . | . . . . Reinforcement 5 | . 1 1 3 Assault . | . . . . Garrison . | . . . . Intercept . | . . . . Searches Triggered . | . . . . Construction Impeded . | . . . . Haulers Reinforced . | . . . . Active Scanning Responses . | . . . . Cargo Convoy Interrupts . | . . . . Stealth | -11 -10 -9 -8 --------- Run | Yrd Mat Mat Mat Distress Signals 2 | . . 1 1 Communications Jammed . | . . . . Distress Signals . | . . . . Times Spotted 58 | . 7 26 25 Peak Tracking Total 7 | . 5 7 6 Tactical Retreats 4 | . . 4 . Traps | -11 -10 -9 -8 ------- Run | Yrd Mat Mat Mat Traps Triggered 2 | . 1 . 1 Indirectly . | . . . . Trap Hack Attempts . | . . . . Triggered . | . . . . Disarmed . | . . . . Reprogrammed . | . . . . Reused . | . . . . Traps Extracted . | . . . . Installed . | . . . . Triggered . | . . . . Machines | -11 -10 -9 -8 ---------- Run | Yrd Mat Mat Mat Machines Disabled 3 | . . . 3 Max in Single Turn 3 | . . . 3 Machines Repaired . | . . . . Machines Dismantled . | . . . . Machines Sabotaged . | . . . . Overloaded Fab Kills . | . . . . Hacking | -11 -10 -9 -8 --------- Run | Yrd Mat Mat Mat Machines Accessed 17 | . 5 8 4 Terminals 12 | . 4 6 2 Fabricators . | . . . . Repair Stations 1 | . . . 1 Recycling Units 3 | . 1 1 1 Scanalyzers 1 | . . 1 . Garrison Access . | . . . . Total Hacks 49 | . 18 19 12 Successful 30 | . 12 13 5 Failed 19 | . 6 6 7 Catastrophic 6 | . 1 3 2 Database Lockouts . | . . . . Manual 16 | . 8 4 4 Terminals 37 | . 14 16 7 Fabricators . | . . . . Repair Stations 3 | . . . 3 Recycling Units 8 | . 4 2 2 Scanalyzers 1 | . . 1 . Garrison Access . | . . . . Terminal Hacks 16 | . 4 9 3 Prototype ID Bank 1 | . 1 . . Alert Level 4 | . 2 2 . Unreport Threat 1 | . . . 1 Dispatch Records 3 | . 1 1 1 Maintenance Status 1 | . . 1 . Security Status 2 | . . 1 1 Recall Reinforcements 1 | . . 1 . Hauler Manifests 1 | . . 1 . Registered Components 1 | . . 1 . Zone Layout 1 | . . 1 . Fabricator Hacks . | . . . . Repair Station Hacks 1 | . . . 1 Refit 1 | . . . 1 Recycling Unit Hacks 4 | . 2 2 . Process 1 | . . 1 . Report Inventory 1 | . . 1 . Retrieve Matter 1 | . 1 . . Retrieve Components 1 | . 1 . . Scanalyzer 1 | . . 1 . Insert Component 1 | . . 1 . Garrison Access Hacks . | . . . . Unauthorized Hacks 8 | . 6 1 1 Terminals 8 | . 6 1 1 Assimilate 2 | . 2 . . Botnet 6 | . 4 1 1 Fabricators . | . . . . Repair Stations . | . . . . Recycling Units . | . . . . Scanalyzers . | . . . . Garrison Access . | . . . . Data Cores Recovered . | . . . . Used . | . . . . Hacking Detections 11 | . 3 4 4 Full Trace Events 2 | . . 1 1 Feedback Events . | . . . . Feedback Blocked . | . . . . Robot Schematics Acquired . | . . . . Robots Built . | . . . . Authchips . | . . . . Time . | . . . . Total Robot Build Rating . | . . . . Part Schematics Acquired . | . . . . Parts Built . | . . . . Authchips . | . . . . Time . | . . . . Total Part Build Rating . | . . . . Parts Repaired . | . . . . Time . | . . . . Parts Recycled . | . . . . Recycled Matter . | . . . . Retrieved Matter . | . . . . Retrieved Components 5 | . 5 . . Parts Scanalyzed . | . . . . Part Schematics Acquired . | . . . . Parts Damaged . | . . . . Bothacking | -11 -10 -9 -8 ------------ Run | Yrd Mat Mat Mat Used RIF Installer . | . . . . Robots Hacked . | . . . . Non-combat . | . . . . Combat . | . . . . Robot Hacks Applied . | . . . . Relay Couplers Released . | . . . . Fabnet Peak Effective % . | . . . . Robots Rewired . | . . . . Allies Hacked . | . . . . Hacks Repelled . | . . . . Allies | -11 -10 -9 -8 -------- Run | Yrd Mat Mat Mat Total Allies . | . . . . Largest Group . | . . . . Highest-Rated Group . | . . . . Highest-Rated Ally . | . . . . Total Orders . | . . . . Ally Attacks . | . . . . Total Damage . | . . . . Kills . | . . . . Allies Corrupted . | . . . . Allies Melted . | . . . . Intel | -11 -10 -9 -8 ------- Run | Yrd Mat Mat Mat Robot Analysis Total . | . . . . Derelict Logs Recovered . | . . . . Drone Launches . | . . . . Drone Recoveries . | . . . . Exploration | -11 -10 -9 -8 ------------- Run | Yrd Mat Mat Mat Turns Passed 2510 | 268 399 1125 718 Spaces Moved 1847 | 151 292 1004 400 Core 26 | 17 . . 9 Treads 101 | 101 . . . Legs . | . . . . Wheels 1720 | 33 292 1004 391 Hover . | . . . . Flight . | . . . . Fastest Speed 50 | 50 100 86 86 Average Speed 102 | 137 100 91 118 Slowest Speed 550 | 200 100 115 550 Overloaded Moves . | . . . . Propulsion Burnouts . | . . . . Robots Hopped . | . . . . Cave-ins Triggered . | . . . . Exploration Rate (%) 34 | 7 38 56 38 Regions Visited 3 Branch Regions . Pre-discovered Areas . | . . . . Known Exits Taken 1 | . . 1 . Unknown Exits Taken 2 | 1 1 . . Scrap Searched . | . . . . Spaces Dug . | . . . . Terrain Destroyed 29 | . . . 29 Melee . | . . . . Projectile . | . . . . AOE 29 | . . . 29 Terrain Rammed . | . . . . Walls Destroyed . | . . . . Machines Disabled . | . . . . Actions | -11 -10 -9 -8 --------- Run | Yrd Mat Mat Mat Total 2236 | 187 370 1133 546 Wait 150 | 1 63 50 36 Move 1844 | 150 291 1003 400 Hop . | . . . . Pick Up 43 | 10 1 16 16 Fast Attach 8 | 6 . 1 1 Attach 18 | 1 . 8 9 Detach . | . . . . Swap 23 | 2 1 10 10 Drop 15 | 2 . 2 11 Fire 135 | 15 14 43 63 Melee . | . . . . Ram . | . . . . Kick . | . . . . Crush . | . . . . Escape Stasis . | . . . . Rewire . | . . . . Trap . | . . . . Miscellaneous . | . . . . Route ------- -11/Scrapyard -10/Materials -9/Materials -8/Materials History --------- Turn | Location | Event 16 | -11/Scrapyard | Discovered new exit (range 16) 269 | -11/Scrapyard | Entered Materials 308 | -10/Materials | Build established: Mutant 540 | -10/Materials | Discovered new exit (range 16) 668 | -10/Materials | Entered another Materials area 668 | -9/Materials | Evolved 2 slots: Propulsion x1, Utility x1 1325 | -9/Materials | Lost 3 parts (1p2n) 1670 | -9/Materials | Discovered new exit (range 10) 1743 | -9/Materials | Build established: Scavenger-Mutant 1792 | -9/Materials | Identified exit to Materials 1793 | -9/Materials | Entered another Materials area 1793 | -8/Materials | Evolved 2 slots: Power x1, Utility x1 1921 | -8/Materials | Lost 3 parts (1p1n1u) 2285 | -8/Materials | Lost 3 parts (2n1u) 2419 | -8/Materials | Build established: Mutant 2467 | -8/Materials | Core integrity fell below 50% 2508 | -8/Materials | Core integrity fell below 20% 2511 | -8/Materials | Destroyed by G-47 Trooper with Particle Gun Last Messages --------------- Slug penetrates Wall. Nuclear Core destroyed. Com. Wheel destroyed. G-47 Trooper destroyed. Slug penetrates Wall. Backup Propulsion I destroyed. Slug penetrates Wall. Wall collapses. Penetrated by Slug. U-05 Engineer builds a Wall. Penetrated by Slug. Nuclear Core destroyed. Weapon Shielding destroyed. Minigun destroyed. Slug penetrates Wall. Imp. Datajack destroyed. Penetrated by Slug. Imp. Sensor Array destroyed. Critical hit (Burn: +37). Penetrated by Slug. Map ----- +----------------------------------------------------+ | ???????????????????????????????? | | ???????????????????????????????? | | ???????????????????????????????? | | ???????????????????????????????? | | ???????????????????????????????? | | ???????????????????????????????? | | ???????????????????????????????? | | ???????????????????????????????? | | ???????????????????????????????? | | ???????????????????????????????? | | ?????????????????????????+?????? | | ????????????????????????? ?????? | | ????????????????????????? ?????? | | ?????????????????????????Y?????? | | ??????????? ""??????????? ?????? | | ????????????""??????????? ?????? | | ???????????? ????####??? ?????? | | ???????????? ???? !!#??# #????? | | ????##+######+##+# !!#??# #????? | | ????# !!#??# #????? | | ##### !!#??# #????? | | [[ !!#??# #????? | | [[ !!???# #????? | | ######## #????? | | u #????? | | ## g @#????? | | ## g ###### | | *!!## * " " #####g #! # | | *!!## "Y" #???# # "# | | ##### """ #???# h # "# | | ????# #???# # "# | | ????# #???# %+ T# | | ##??# ########???# # "# | | #??# #??????????###### # "# | | #??# #???????????????# #! "# | | #??# #???????????????# # # | | #??# #???????????????# ###### | | ????# ??????????????? #????? | | ????# ???????????????# #????? | | ????# ???????????????# #????? | | ???? ???????????????? ?????? | | ????? ?????????????????+?????? | | ???????????????????????????????? | | ???????????????????????????????? | | ???????????????????????????????? | | ???????????????????????????????? | | ???????????????????????????????? | | ???????????????????????????????? | | ####???????????????????????????? | | #???????????????????????????? | +----------------------------------------------------+ Best States ------------- Heat Dissipation 45 Energy Generation 23 Energy Capacity 400 Matter Stores 300 Matter Capacity 300 Sight Range 16 Robot Scan Range 15 Terrain Scan Range 16 Terrain Scan Density 10 Armor Coverage 225 Weapon Shielding 33 Evasion (%) 42 Recoil Reduction 2 Item Schematics ----------------- None Robot Schematics ------------------ None Fabricated ------------ Nothing Alien Tech Used ----------------- None Achievements -------------- Everything Is Under Control Quantum Hacking Safety First True Hacker Challenges ------------ None Game ------ Seed SwordSegregatorCleaver Manual? 0 Play Time 00:49:29 Cumulative 3.1 hours Start 2024.03.15 @ 14:41:31 End 2024.03.15 @ 15:29:27 Sessions 1 Manual Loads 0 Difficulty Rogue Special Mode None Game No. 4 Rogue 4 Adventurer 0 Explorer 0 Win Type - Total 0 Types 0/0/0/0/0/0/0/0/0 Lore% 2 Gallery% 5 Achievement% 6 Wizard Run 0 Options --------- Layout 1 ASCII 0 Keyboard 0 Movement Numpad Keybinds 0 Fullscreen 1 Font 32/SmallcapsGlow Map View 50x35 Zoom Use 0% Tactical HUD 0 Map Filters NONE Filters NONE Steam 1 RUN: a225239d-b2b7-42a1-bf9a-ca220ffb191b